{"text_format":"1","workbook":"xlsx","n_sheets":6,"sheets":["Cover","Navigator","Style Guide","Model Parameters","Broken Y Axis Example","Error Checks"],"not_rendered":{"charts":7,"images":3,"macros":1,"external_links":0,"defined_names":24,"comments":0,"pivot_tables":0},"unopened":[],"bounds":{"document_bytes":16777216,"sheet_cells":100000,"rows_first":2000,"rows_last":500,"rows_between":2000,"halvings":0,"cell_chars":16384,"cell_head_chars":4096},"cells_cut":0,"cells_raw":0,"read":"whole","date_system":"1900"}

{"sheet":"Cover","index":0,"n_rows":22,"n_cols":7,"rows_kept":22,"cut":false,"hidden":false,"merged":[[16,2,16,9],[17,2,17,9],[20,6,20,8],[21,6,21,8]]}
[]
[]
["Navigator"]
[]
[null,null,{"$f":"Client_Name","v":"SumProduct Pty Limited"}]
[null,null,{"$f":"Model_Name","v":"SP Broken Charts on Y Axis Example.xlsm"}]
[]
[]
[]
[]
[]
[]
[]
[null,null,"Primary Developer:  Liam Bastick"]
[]
[null,null,"General Cover Notes:"]
[null,null,"Simple example of how to create a chart with a broken Y (vertical) axis."]
[]
[]
[]
[null,null,"Any queries, please e-mail:",null,null,null,"liam.bastick@sumproduct.com"]
[null,null,"Website:",null,null,null,"www.sumproduct.com"]

{"sheet":"Navigator","index":1,"n_rows":13,"n_cols":7,"rows_kept":13,"cut":false,"hidden":false,"merged":[]}
["Navigator"]
[{"$f":"Model_Name","v":"SP Broken Charts on Y Axis Example.xlsm"}]
["Navigator"]
[null,null,null,null,"Error Checks:",null,{"$f":"Overall_Error_Check","v":0}]
[]
[]
[null,1,"Table of Contents"]
[]
[null,null,null,null,null,"Cover"]
[null,null,null,null,null,"Style Guide"]
[null,null,null,null,null,"Model Parameters"]
[null,null,null,null,null,"Broken Y Axis Example"]
[null,null,null,null,null,"Error Checks"]

{"sheet":"Style Guide","index":2,"n_rows":74,"n_cols":11,"rows_kept":74,"cut":false,"hidden":false,"merged":[[80,2,80,6],[74,2,74,6],[75,2,75,6],[76,2,76,6],[77,2,77,6],[78,2,78,6],[79,2,79,6],[73,2,73,6],[62,2,62,6],[63,2,63,6],[64,2,64,6],[65,2,65,6],[66,2,66,6],[67,2,67,6],[68,2,68,6],[69,2,69,6],[70,2,70,6],[71,2,71,6],[72,2,72,6],[61,2,61,6],[47,2,47,6],[48,2,48,6],[49,2,49,6],[50,2,50,6],[51,2,51,6],[52,2,52,6],[53,2,53,6],[54,2,54,6],[57,2,57,6],[59,2,59,6],[60,2,60,6],[46,2,46,6],[35,2,35,6],[36,2,36,6],[37,2,37,6],[38,2,38,6],[39,2,39,6],[40,2,40,6],[41,2,41,6],[42,2,42,6],[43,2,43,6],[44,2,44,6],[45,2,45,6],[34,2,34,6],[17,2,17,6],[18,2,18,6],[19,2,19,6],[24,2,24,6],[25,2,25,6],[26,2,26,6],[27,2,27,6],[28,2,28,6],[29,2,29,6],[30,2,30,6],[31,2,31,6],[16,2,16,6],[2,0,2,4],[7,2,7,6],[8,2,8,6],[9,2,9,6],[10,2,10,6],[11,2,11,6],[12,2,12,6],[13,2,13,6],[14,2,14,6],[15,2,15,6]]}
[{"$f":"IF(ISERROR(RIGHT(CELL(\"filename\",A1),LEN(CELL(\"filename\",A1))-FIND(\"]\",CELL(\"filename\",A1)))),\n\"\",\nRIGHT(CELL(\"filename\",A1),LEN(CELL(\"filename\",A1))-FIND(\"]\",CELL(\"filename\",A1))))","v":"Style Guide"}]
[{"$f":"Model_Name","v":"SP Broken Charts on Y Axis Example.xlsm"}]
["Navigator"]
[null,null,null,null,"Error Checks:",null,null,null,{"$f":"Overall_Error_Check","v":0}]
[]
[null,{"$f":"MAX($B$5:$B5)+1","v":1},"Formatting of Headers / Dividers"]
[]
[null,null,"Description",null,null,null,null,null,"Display",null,"Style Name"]
[]
[null,null,"Sheet Title",null,null,null,null,null,{"$f":"C10","v":"Sheet Title"},null,"Sheet Title"]
[null,null,"Model Name",null,null,null,null,null,{"$f":"C11","v":"Model Name"},null,"Model Name"]
[]
[null,null,"Header 1",null,null,null,null,null,{"$f":"C13","v":"Header 1"},null,"Header 1"]
[null,null,"Header 2",null,null,null,null,null,{"$f":"C14","v":"Header 2"},null,"Header 2"]
[null,null,"Header 3",null,null,null,null,null,{"$f":"C15","v":"Header 3"},null,"Header 3"]
[null,null,"Header 4",null,null,null,null,null,{"$f":"C16","v":"Header 4"},null,"Header 4"]
[]
[null,null,"Notes",null,null,null,null,null,{"$f":"C18","v":"Notes"},null,"Notes"]
[]
[null,null,"Table Heading",null,null,null,null,null,{"$f":"C20","v":"Table Heading"},null,"Table Heading"]
[]
[]
[null,{"$f":"MAX($B$5:$B22)+1","v":2},"Individual Cell Styles"]
[]
[null,null,"Description",null,null,null,null,null,"Display",null,"Style Name"]
[]
[null,null,"Assumption",null,null,null,null,null,"Assumption",null,{"$f":"C27","v":"Assumption"}]
[]
[null,null,"Constraint",null,null,null,null,null,{"$f":"C29","v":"Constraint"},null,{"$f":"C29","v":"Constraint"}]
[]
[null,null,"Empty",null,null,null,null,null,null,null,{"$f":"C31","v":"Empty"}]
[]
[null,null,"Error Check",null,null,null,null,null,0,null,{"$f":"C33","v":"Error Check"}]
[]
[null,null,"Hyperlink",null,null,null,null,null,"Hyperlink",null,{"$f":"C35","v":"Hyperlink"}]
[]
[null,null,"Internal Reference",null,null,null,null,null,{"$f":"'Error Checks'!E12","v":"Unused"},null,{"$f":"C37","v":"Internal Reference"}]
[]
[null,null,"Line Calculation",null,null,null,null,null,77,null,"Line Calc"]
[]
[null,null,"Line Total",null,null,null,null,null,{"$f":"I39","v":77},null,{"$f":"C41","v":"Line Total"}]
[]
[null,null,"Parameter",null,null,null,null,null,365,null,{"$f":"C43","v":"Parameter"}]
[]
[null,null,"Range Name Description",null,null,null,null,null,"Not_Named",null,{"$f":"C45","v":"Range Name Description"}]
[]
[null,null,"Row Reference",null,null,null,null,null,{"$f":"ROW(C47)","v":47},null,"Row Ref"]
[]
[null,null,"Row Summary",null,null,null,null,null,{"$f":"I41","v":77},null,{"$f":"C49","v":"Row Summary"}]
[]
[null,null,"Units",null,null,null,null,null,"A$",null,{"$f":"C51","v":"Units"}]
[]
[null,null,"WIP",null,null,null,null,null,null,null,{"$f":"C53","v":"WIP"}]
[]
[]
[null,{"$f":"MAX($B$5:$B55)+1","v":3},"Numerical Styles"]
[]
[null,null,"Description",null,null,null,null,null,"Display",null,"Style Name"]
[]
[null,null,"Comma",null,null,null,null,null,123456.789,null,{"$f":"C60","v":"Comma"}]
[]
[null,null,"Comma [0]",null,null,null,null,null,-123456.789,null,"Comma [0]"]
[]
[null,null,"Currency",null,null,null,null,null,123456.789,null,"Currency"]
[]
[null,null,"Currency [0]",null,null,null,null,null,123456.789,null,"Currency [0]"]
[]
[null,null,"Date",null,null,null,null,null,{"$f":"TODAY()","v":"2022-02-08"},null,{"$f":"C68","v":"Date"}]
[]
[null,null,"Date Heading",null,null,null,null,null,{"$f":"TODAY()","v":"2022-02-08"},null,{"$f":"C70","v":"Date Heading"}]
[]
[null,null,"Numbers 0",null,null,null,null,null,-123456.789,null,{"$f":"C72","v":"Numbers 0"}]
[]
[null,null,"Percent",null,null,null,null,null,0.5,null,{"$f":"C74","v":"Percent"}]

{"sheet":"Model Parameters","index":3,"n_rows":31,"n_cols":9,"rows_kept":31,"cut":false,"hidden":false,"merged":[[0,9,0,10],[2,0,2,4],[10,6,10,13],[11,6,11,13]]}
[{"$f":"IF(ISERROR(RIGHT(CELL(\"filename\",A1),LEN(CELL(\"filename\",A1))-FIND(\"]\",CELL(\"filename\",A1)))),\n\"\",\nRIGHT(CELL(\"filename\",A1),LEN(CELL(\"filename\",A1))-FIND(\"]\",CELL(\"filename\",A1))))","v":"Model Parameters"}]
[{"$f":"Model_Name","v":"SP Broken Charts on Y Axis Example.xlsm"}]
["Navigator"]
[null,null,null,null,"Error Checks:",null,null,null,{"$f":"Overall_Error_Check","v":0}]
[]
[null,{"$f":"MAX($B$5:$B5)+1","v":1},"General"]
[]
[null,null,"Key Inputs"]
[]
[null,null,null,null,"General"]
[null,null,null,null,"Model Name",null,{"$f":"IF(ISERROR(OR(FIND(\"[\",CELL(\"filename\",A1)),FIND(\"]\",CELL(\"filename\",A1)))),\"\",MID(CELL(\"filename\",A1),FIND(\"[\",CELL(\"filename\",A1))+1,FIND(\"]\",CELL(\"filename\",A1))-FIND(\"[\",CELL(\"filename\",A1))-1))","v":"SP Broken Charts on Y Axis Example.xlsm"}]
[null,null,null,null,"Client Name",null,"SumProduct Pty Limited"]
[]
[]
[null,{"$f":"MAX($B$5:$B14)+1","v":2},"General Range Names"]
[]
[null,null,"Technical Assumptions"]
[]
[null,null,null,null,"Days in Year",null,365]
[null,null,null,null,"Months in Month",null,1]
[null,null,null,null,"Months in Quarter",null,3]
[null,null,null,null,"Months in Half Yr",null,6]
[null,null,null,null,"Months in Year",null,12]
[null,null,null,null,"Quarters in Year",null,4]
[]
[null,null,null,null,"Rounding Accuracy",null,5]
[]
[null,null,null,null,"Very Large Number",null,9.9999999999999997E+98]
[null,null,null,null,"Very Small Number",null,1E-8]
[]
[null,null,null,null,"Thousand",null,1000]

{"sheet":"Broken Y Axis Example","index":4,"n_rows":281,"n_cols":11,"rows_kept":281,"cut":false,"hidden":false,"merged":[[2,0,2,4]]}
[{"$f":"IF(ISERROR(RIGHT(CELL(\"filename\",A1),LEN(CELL(\"filename\",A1))-FIND(\"]\",CELL(\"filename\",A1)))),\n\"\",\nRIGHT(CELL(\"filename\",A1),LEN(CELL(\"filename\",A1))-FIND(\"]\",CELL(\"filename\",A1))))","v":"Broken Y Axis Example"}]
[{"$f":"Model_Name","v":"SP Broken Charts on Y Axis Example.xlsm"}]
["Navigator"]
[null,null,null,null,"Error Checks:",null,null,null,{"$f":"Overall_Error_Check","v":0}]
[]
[null,{"$f":"MAX($B$5:$B5)+1","v":1},"Assumptions"]
[]
[null,null,"Revenue"]
[]
[null,null,null,{"$f":"A1","v":"Broken Y Axis Example"}]
[]
[null,null,null,null,null,"Month","Meat","Toilet Rolls","Pasta"]
[null,null,null,null,null,"Jan",64188,37493,31290]
[null,null,null,null,null,"Feb",67592,41222,47848]
[null,null,null,null,null,"Mar",62166,38299,52661]
[null,null,null,null,null,"Apr",449544,507155,474868]
[null,null,null,null,null,"May",451428,496544,470100]
[null,null,null,null,null,"Jun",12052,6138,12922]
[null,null,null,null,null,"Jul",4646,4294,9088]
[null,null,null,null,null,"Aug",27395,5166,15166]
[null,null,null,null,null,"Sep",52166,12938,24377]
[null,null,null,null,null,"Oct",55177,25222,39825]
[null,null,null,null,null,"Nov",58936,27144,39044]
[null,null,null,null,null,"Dec",50012,29387,56193]
[]
[]
[null,{"$f":"MAX($B$5:$B26)+1","v":2},"Finding Largest Gap"]
[]
[null,null,"Gap"]
[]
[null,null,null,"Calculation"]
[]
[null,null,null,null,null,null,null,"Max Gap","Lower Val","Upper Val"]
[null,null,null,null,"Largest Gap",null,{"$f":"MATCH(H34,IFERROR(LARGE(G13:I24,_xlfn.SEQUENCE(COUNT(G13:I24))-1)-LARGE(G13:I24,_xlfn.SEQUENCE(COUNT(G13:I24))),),0)","v":7},{"$f":"MAX(IFERROR(LARGE(G13:I24,_xlfn.SEQUENCE(COUNT(G13:I24))-1)-LARGE(G13:I24,_xlfn.SEQUENCE(COUNT(G13:I24))),))","v":381952},{"$f":"LARGE($G$13:$I$24,$G$34)","v":67592},{"$f":"LARGE($G$13:$I$24,$G$34-1)","v":449544}]
[]
[null,null,null,null,"Multiple",null,40000]
[]
[null,null,null,null,null,null,null,"Rev Gap","Rev Lower","Rev Upper"]
[null,null,null,null,"Revisions",null,null,{"$f":"J39-I39","v":320000},{"$f":"ROUNDUP(I34/G36,0)*G36","v":80000},{"$f":"ROUNDDOWN((J34/G36)-1,0)*G36","v":400000}]
[]
[]
[null,{"$f":"MAX($B$5:$B41)+1","v":3},"Revised Input Data"]
[]
[null,null,{"$f":"C8","v":"Revenue"}]
[]
[null,null,null,{"$f":"D10","v":"Broken Y Axis Example"}]
[]
[null,null,null,null,null,{"$f":"F12","v":"Month"},{"$f":"G12","v":"Meat"},"Toilet Rolls","Pasta"]
[null,null,null,null,null,{"$f":"F13","v":"Jan"},{"$f":"IF(G13<$I$39,G13,G13-$H$39)","v":64188},{"$f":"IF(H13<$I$39,H13,H13-$H$39)","v":37493},31290]
[null,null,null,null,null,"Feb",{"$f":"IF(G14<$I$39,G14,G14-$H$39)","v":67592},41222,47848]
[null,null,null,null,null,"Mar",62166,38299,52661]
[null,null,null,null,null,"Apr",129544,187155,154868]
[null,null,null,null,null,"May",131428,176544,150100]
[null,null,null,null,null,"Jun",12052,6138,12922]
[null,null,null,null,null,"Jul",4646,4294,9088]
[null,null,null,null,null,"Aug",27395,5166,15166]
[null,null,null,null,null,"Sep",52166,12938,24377]
[null,null,null,null,null,"Oct",55177,25222,39825]
[null,null,null,null,null,"Nov",58936,27144,39044]
[null,null,null,null,null,"Dec",50012,29387,56193]
[]
[]
[null,{"$f":"MAX($B$5:$B62)+1","v":4},"Initial Chart"]
[]
[null,null,"Plotting the Revised Data"]
[]
[null,null,null,"Work in Progress"]
[]
[]
[]
[]
[]
[]
[]
[]
[]
[]
[]
[]
[]
[]
[]
[]
[]
[]
[]
[]
[]
[]
[]
[]
[null,{"$f":"MAX($B$5:$B91)+1","v":5},"Helper Calculations"]
[]
[null,null,"Assistance with Chart Cheating"]
[]
[null,null,null,"Calculations"]
[]
[null,null,null,null,null,"Dummy","Rev Val","Chart Lbl"]
[null,null,null,null,null,0,{"$f":"IFERROR(G98+($G$36/2),)+($G$36/2)*(N(G98)=$I$39)","v":0},{"$f":"IF($G99<=$I$39,$G99,$G99+$H$39)","v":0}]
[null,null,null,null,null,0,{"$f":"IFERROR(G99+($G$36/2),)+($G$36/2)*(N(G99)=$I$39)","v":20000},{"$f":"IF($G100<=$I$39,$G100,$G100+$H$39)","v":20000}]
[null,null,null,null,null,0,40000,40000]
[null,null,null,null,null,0,60000,60000]
[null,null,null,null,null,0,80000,80000]
[null,null,null,null,null,0,120000,440000]
[null,null,null,null,null,0,140000,460000]
[null,null,null,null,null,0,160000,480000]
[null,null,null,null,null,0,180000,500000]
[null,null,null,null,null,0,{"$f":"IFERROR(G107+($G$36/2),)+($G$36/2)*(N(G107)=$I$39)","v":200000},520000]
[]
[]
[null,{"$f":"MAX($B$5:$B110)+1","v":6},"Interim Chart #1"]
[]
[null,null,"Revising the Chart"]
[]
[null,null,null,"Work in Progress"]
[]
[]
[]
[]
[]
[]
[]
[]
[]
[]
[]
[]
[]
[]
[]
[]
[]
[]
[]
[]
[]
[]
[]
[]
[null,{"$f":"MAX($B$5:$B139)+1","v":7},"Interim Chart #2"]
[]
[null,null,"Revising the Chart #2"]
[]
[null,null,null,"Changing New Series to a Scatter Chart"]
[]
[]
[]
[]
[]
[]
[]
[]
[]
[]
[]
[]
[]
[]
[]
[]
[]
[]
[]
[]
[]
[]
[]
[]
[null,{"$f":"MAX($B$5:$B168)+1","v":8},"Interim Chart #3"]
[]
[null,null,"Revising the Chart #3"]
[]
[null,null,null,"Deleting Secondary Y Axis and \"Freezing\" Secondary Axis"]
[]
[]
[]
[]
[]
[]
[]
[]
[]
[]
[]
[]
[]
[]
[]
[]
[]
[]
[]
[]
[]
[]
[]
[]
[null,{"$f":"MAX($B$5:$B197)+1","v":9},"Interim Chart #4"]
[]
[null,null,"Revising the Chart #4"]
[]
[null,null,null,"No Tick Marks or Labels for Axes"]
[]
[]
[]
[]
[]
[]
[]
[]
[]
[]
[]
[]
[]
[]
[]
[]
[]
[]
[]
[]
[]
[]
[]
[]
[null,{"$f":"MAX($B$5:$B226)+1","v":10},"Interim Chart #5"]
[]
[null,null,"Revising the Chart #5"]
[]
[null,null,null,"Added Labels to Secondary Markers on Y Axis, Adjust the Legend"]
[]
[]
[]
[]
[]
[]
[]
[]
[]
[]
[]
[]
[]
[]
[]
[]
[]
[]
[]
[]
[]
[]
[]
[]
[null,{"$f":"MAX($B$5:$B255)+1","v":11},"Helper Calculations #2"]
[]
[null,null,{"$f":"C94","v":"Assistance with Chart Cheating"}]
[]
[null,null,null,{"$f":"D96","v":"Calculations"},null,null,null,null,null,null,"Secret Rectangle"]
[]
[null,null,null,null,null,{"$f":"F48","v":"Month"},"Data 1","Data 2","Data 3"]
[null,null,null,null,null,0,{"$f":"$I$39+$G$36/4","v":90000},{"$f":"G263+$G$36/2","v":110000},{"$f":"AVERAGE(G263:H263)","v":100000}]
[null,null,null,null,null,{"$f":"F263+1/11","v":9.0909090909090912E-2},{"$f":"$I$39+$G$36/4","v":90000},{"$f":"G264+$G$36/2","v":110000},{"$f":"AVERAGE(G264:H264)","v":100000}]
[null,null,null,null,null,{"$f":"F264+1/11","v":0.18181818181818182},90000,110000,100000]
[null,null,null,null,null,0.27272727272727271,90000,110000,100000]
[null,null,null,null,null,0.36363636363636365,90000,110000,100000]
[null,null,null,null,null,0.45454545454545459,90000,110000,100000]
[null,null,null,null,null,0.54545454545454553,90000,110000,100000]
[null,null,null,null,null,0.63636363636363646,90000,110000,100000]
[null,null,null,null,null,0.7272727272727274,90000,110000,100000]
[null,null,null,null,null,0.81818181818181834,90000,110000,100000]
[null,null,null,null,null,0.90909090909090928,90000,110000,100000]
[null,null,null,null,null,1.0000000000000002,90000,110000,100000]
[]
[]
[null,{"$f":"MAX($B$5:$B276)+1","v":12},"Final Chart"]
[]
[null,null,"Completed Chart"]
[]
[null,null,null,"With Additional Help…"]

{"sheet":"Error Checks","index":5,"n_rows":17,"n_cols":9,"rows_kept":17,"cut":false,"hidden":false,"merged":[[0,8,0,9],[2,0,2,4]]}
[{"$f":"IF(ISERROR(RIGHT(CELL(\"filename\",A1),LEN(CELL(\"filename\",A1))-FIND(\"]\",CELL(\"filename\",A1)))),\n\"\",\nRIGHT(CELL(\"filename\",A1),LEN(CELL(\"filename\",A1))-FIND(\"]\",CELL(\"filename\",A1))))","v":"Error Checks"}]
[{"$f":"Model_Name","v":"SP Broken Charts on Y Axis Example.xlsm"}]
["Navigator"]
[null,"Error Checks:",null,null,null,{"$f":"Overall_Error_Check","v":0}]
[]
[null,{"$f":"MAX($B$5:$B5)+1","v":1},"Error Checks"]
[]
[null,null,"Summary of Errors"]
[]
[null,null,null,"Assumptions"]
[]
[null,null,null,null,"Unused"]
[]
[]
[]
[]
[null,null,null,null,{"$f":"C8","v":"Summary of Errors"},null,null,null,{"$f":"MIN(1,SUM(I11:I15))","v":0}]